bitfinex/quotes_SOLUSD_20260203
["timestamp","ask_amount","ask_price","bid_price","bid_amount"]
[1770081973593,0.57158782,104.09,104.06,8.1051509]
[1770081974393,0.57158782,104.09,104.06,9.60920386]
[1770081974604,0.47158782,104.07,104.05,9.61033959]
[1770081975276,7.72293025,104.09,104.05,9.61033959]
[1770081975277,0.47158782,104.08,104.05,9.61033959]
[1770081975471,0.47158782,104.08,104.06,9.60980388]
[1770081976289,0.47158782,104.08,104.05,9.61076405]
[1770081976500,1e-08,104.09,104.07,0.48222065]
[1770081976802,0.47158782,104.14,104.09,0.48222065]
[1770081977009,0.47158782,104.14,104.1,8.1051509]
[1770081977187,8.09451807,104.14,104.1,8.1051509]
[1770081977377,0.47158782,104.13,104.1,0.48222065]
[1770081977578,0.47158782,104.13,104.1,8.1051509]
[1770081978504,0.47158782,104.13,104.11,9.60522524]
[1770081980180,0.47158782,104.13,104.1,10.09308453]
[1770081982509,7.62293025,104.14,104.1,34.10845436]
[1770081982684,0.45720337,104.14,104.1,41.73138461]
[1770081983087,0.45720337,104.14,104.11,0.48741299]
[1770081984379,0.45720337,104.14,104.1,41.73138461]
[1770081984877,0.45720337,104.16,104.11,7.62293025]
[1770081985082,8.08013362,104.16,104.12,0.48741299]
[1770081985287,0.45720337,104.16,104.12,8.11034324]
[1770081985491,0.45720337,104.16,104.13,8.11034324]
[1770081985692,0.1,104.17,104.14,0.48741299]
[1770081985891,0.55720337,104.17,104.14,0.48741299]
[1770081986093,8.18013362,104.17,104.14,0.48741299]
[1770081986306,8.18013362,104.17,104.13,0.48741299]
[1770081987218,0.45720337,104.16,104.14,9.60245822]
[1770081987411,0.45720337,104.15,104.13,9.60290118]
[1770081988512,8.08013362,104.16,104.13,10.09031417]
[1770081988686,0.45720337,104.16,104.13,10.09031417]
[1770081989014,8.08013362,104.16,104.13,10.09031417]
[1770081990013,0.45720337,104.15,104.13,9.60290118]
[1770081990217,0.45720337,104.14,104.12,9.60402165]
[1770081990810,0.45720337,104.15,104.12,10.09143464]
[1770081991587,1e-08,104.17,104.15,0.48741299]
[1770081991809,1e-08,104.17,104.16,0.48741299]
[1770081992082,1e-08,104.17,104.16,10.08802742]
[1770081992283,1e-08,104.18,104.17,0.48741299]
[1770081992522,1e-08,104.18,104.17,8.11034324]
[1770081994412,1e-08,104.18,104.17,9.5996928]
[1770081995197,0.45720338,104.18,104.16,9.59988929]
[1770081995404,1e-08,104.18,104.17,9.58710579]
[1770081996619,1e-08,104.18,104.17,0.48741299]
[1770081998722,1e-08,104.18,104.17,10.08710579]
[1770082001722,1e-08,104.18,104.17,9.5996928]
[1770082003018,1e-08,104.18,104.16,0.48741299]
[1770082003820,1e-08,104.18,104.16,9.60028944]
[1770082004121,8.08013362,104.17,104.14,9.60199924]
[1770082004320,1e-08,104.18,104.11,24.49869681]
[1770082004321,8.08013362,104.15,104.11,24.49869681]
[1770082004499,8.08013362,104.14,104.11,10.09216467]
[1770082004703,7.62293025,104.13,104.11,9.60475168]
[1770082004901,7.62293025,104.13,104.1,10.0930525]
[1770082005202,8.08013363,104.18,104.14,9.60245822]
[1770082005507,7.62293025,104.17,104.14,10.08987121]
[1770082007122,8.08013363,104.18,104.14,10.08987121]
[1770082008225,8.08013362,104.17,104.14,9.60245822]
[1770082008722,8.08013362,104.16,104.13,9.60298549]
[1770082008923,0.45720337,104.14,104.12,9.60390952]
[1770082009323,8.08013362,104.15,104.13,9.6033159]
[1770082009733,8.08013362,104.15,104.12,9.60378159]
[1770082010109,8.11071142,104.14,104.11,10.09239953]
[1770082010411,7.62293025,104.15,104.12,9.60372131]
[1770082010603,8.11071142,104.16,104.12,10.08629733]
[1770082011118,7.62293025,104.15,104.12,10.08629733]
[1770082011517,0.48778117,104.17,104.13,0.48257602]
[1770082011830,0.48778117,104.16,104.13,0.48257602]
[1770082012731,8.11071142,104.16,104.12,41.71998439]
[1770082012914,0.48778117,104.15,104.12,10.08629733]
[1770082013108,8.11071142,104.15,104.12,9.60372131]
[1770082013332,8.11071142,104.14,104.11,10.08741201]
[1770082013626,0.48778117,104.14,104.11,10.08741201]
[1770082015037,8.11071142,104.16,104.12,10.08685169]
[1770082015412,7.62293025,104.17,104.13,0.48257602]
[1770082015612,34.79071143,104.18,104.14,0.48257602]
[1770082015812,8.11071142,104.17,104.13,0.48257602]
[1770082017531,8.11071142,104.17,104.14,9.60245822]
[1770082019034,0.48778117,104.16,104.13,10.08571487]
[1770082019244,8.11071142,104.17,104.14,0.48257602]
[1770082019438,7.62293026,104.18,104.15,0.48257602]
[1770082019617,1e-08,104.18,104.15,0.48257602]
[1770082020841,1e-08,104.18,104.16,10.08274099]
[1770082022030,1e-08,104.18,104.17,0.48257602]
[1770082022912,1e-08,104.18,104.16,41.22463131]
[1770082022913,1e-08,104.18,104.15,8.10550627]
[1770082023130,1e-08,104.18,104.15,17.70650464]
[1770082023933,1e-08,104.18,104.16,9.60052226]
[1770082024434,0.48778117,104.17,104.14,10.08477909]
[1770082024647,0.48778117,104.16,104.14,9.60220307]
[1770082024842,8.11071143,104.18,104.14,17.70770934]
[1770082025525,8.11071143,104.18,104.14,10.08477909]
[1770082025726,8.11071143,104.18,104.15,0.48257602]
[1770082026032,8.11071143,104.18,104.14,10.08477909]
[1770082026230,8.11071143,104.18,104.14,34.09092466]
[1770082026444,1e-08,104.18,104.16,8.07892193]
[1770082026920,1e-08,104.18,104.16,17.67914206]
[1770082027437,1e-08,104.18,104.17,0.48257602]
[1770082027640,1e-08,104.18,104.17,8.07892193]
[1770082028133,1e-08,104.18,104.16,41.68067815]
[1770082028642,1e-08,104.18,104.17,8.07892193]
[1770082029741,1e-08,104.18,104.17,17.19603871]
[1770082030328,1e-08,104.18,104.17,17.67861473]
[1770082030521,1e-08,104.18,104.17,17.19603871]
[1770082031433,1e-08,104.22,104.18,0.28432314]
[1770082031724,1e-08,104.22,104.21,17.67492999]
[1770082031944,0.1,104.25,104.22,0.48257602]
[1770082032247,0.1,104.25,104.24,8.07892193]
[1770082032425,8.18412708,104.28,104.24,8.07892193]
[1770082032625,0.58778117,104.28,104.24,8.07892193]
[1770082033846,0.58778117,104.28,104.24,17.671295]
[1770082034047,8.18412708,104.28,104.24,17.671295]
[1770082034552,8.08412708,104.26,104.23,9.59378672]
[1770082035523,8.08412708,104.24,104.2,32.06946146]
[1770082035719,8.08412708,104.24,104.2,24.47311555]
[1770082035932,8.08412708,104.24,104.21,9.59600806]
[1770082036344,8.08412708,104.26,104.22,0.48257602]
[1770082036731,8.08412708,104.25,104.21,17.67492999]
[1770082036927,8.08412708,104.25,104.21,10.07858408]
[1770082037351,8.08412708,104.24,104.21,0.48257602]
[1770082037645,0.48778117,104.24,104.21,0.48257602]
[1770082038244,0.48778117,104.24,104.21,10.07845004]
[1770082040129,8.08412708,104.24,104.21,0.48257602]
[1770082041052,0.48778117,104.24,104.21,0.48257602]
[1770082041354,8.0497168,104.26,104.22,0.47582151]
[1770082041554,7.59634591,104.25,104.22,0.47582151]
[1770082041936,8.0497168,104.25,104.22,0.47582151]
[1770082042449,8.0497168,104.24,104.21,10.07159618]
[1770082043145,8.0497168,104.23,104.19,10.07315722]
[1770082043955,8.0497168,104.23,104.2,10.07273643]
[1770082045367,8.0497168,104.22,104.19,9.59732028]
[1770082045532,8.0497168,104.22,104.18,10.07380149]
[1770082045733,8.0497168,104.22,104.17,7.59634591]
[1770082045734,8.0497168,104.22,104.19,10.07349633]
[1770082047239,7.59634591,104.22,104.19,10.07349633]
[1770082049049,8.0497168,104.23,104.19,10.07349633]
[1770082049674,8.0497168,104.23,104.2,0.47582151]
[1770082049974,7.59634591,104.22,104.19,10.07349633]
[1770082050462,8.0497168,104.23,104.19,10.07349633]
[1770082051060,8.0497168,104.22,104.19,0.47582151]
[1770082052248,8.0497168,104.22,104.19,10.07360797]
[1770082054872,0.45337089,104.2,104.17,0.47582151]
[1770082055164,8.0497168,104.2,104.17,10.07514451]
[1770082055966,0.45337089,104.2,104.17,10.07514451]
[1770082056267,8.0497168,104.21,104.18,0.47582151]
[1770082058872,8.0497168,104.19,104.15,10.07683006]
[1770082059068,8.0497168,104.18,104.15,10.07683006]
[1770082059646,7.59634591,104.19,104.16,9.60052213]
[1770082059846,8.0497168,104.19,104.16,9.60052213]
[1770082060344,34.7097168,104.21,104.18,0.47582151]
[1770082060545,34.7097168,104.21,104.17,10.07546289]
[1770082060764,8.0497168,104.19,104.15,10.07698205]
[1770082060940,8.0497168,104.17,104.14,10.0779176]
[1770082061848,8.0497168,104.17,104.15,9.60148526]
[1770082062347,8.0497168,104.17,104.14,10.07803945]
[1770082067249,7.59634591,104.16,104.14,10.07803945]
[1770082067645,8.0497168,104.19,104.15,0.47582151]
[1770082068370,3.28979985,104.19,104.16,0.47582151]
[1770082068866,0.45337089,104.16,104.1,0.47582151]
[1770082069073,2.83642896,104.11,104.08,9.60799385]
[1770082069846,2.83642896,104.12,104.08,36.46440743]
[1770082070259,2.83642896,104.14,104.09,2.83642896]
[1770082070458,7.60535743,104.14,104.09,7.60535743]
[1770082071172,0.46050421,104.15,104.12,0.47229538]
[1770082071173,7.60535743,104.15,104.12,0.47229538]
[1770082071672,8.06586164,104.16,104.12,0.47229538]
[1770082072173,7.60535743,104.15,104.12,0.47229538]
[1770082072369,7.60535743,104.13,104.1,10.0779693]
[1770082073553,7.60535743,104.15,104.11,0.47229538]
[1770082073753,7.60535743,104.15,104.12,0.47229538]
[1770082073956,8.06586164,104.15,104.12,0.47229538]
[1770082074183,7.60535743,104.13,104.09,17.21223368]
[1770082074363,8.06586164,104.11,104.07,0.2]
[1770082074560,8.06586164,104.1,104.07,9.8084929]
[1770082074780,8.06586164,104.11,104.08,9.60792411]
[1770082075284,8.06586164,104.12,104.08,9.60792411]
[1770082075465,7.60535743,104.09,104.07,0.2]
[1770082075668,8.06586164,104.09,104.07,0.2]
[1770082076183,7.60535743,104.09,104.07,0.2]
[1770082077778,8.06586164,104.1,104.07,0.67229538]
[1770082078082,8.06586164,104.1,104.07,10.2811398]
[1770082078372,7.60535743,104.09,104.07,10.2811398]
[1770082078985,7.60535743,104.09,104.07,0.2]
[1770082080476,7.60535743,104.08,104.07,0.2]
[1770082081377,8.06586164,104.09,104.07,0.2]
[1770082081977,8.06586164,104.08,104.06,0.2]
[1770082082492,8.06586164,104.07,104.06,0.2]
[1770082082660,8.06586164,104.08,104.06,0.2]
[1770082082996,7.60535743,104.09,104.06,10.28213585]
[1770082083297,0.46050421,104.12,104.08,0.47229538]
[1770082083462,8.06586164,104.13,104.09,0.47229538]
[1770082083668,8.06586164,104.13,104.1,0.47229538]
[1770082084163,7.60535743,104.12,104.1,0.47229538]
[1770082084871,8.06586164,104.13,104.1,0.47229538]
[1770082085260,8.06586164,104.12,104.08,17.68522927]
[1770082085465,7.60535743,104.11,104.09,9.60700461]
[1770082085870,7.60535743,104.11,104.09,0.47229538]
[1770082086067,8.06586164,104.12,104.09,0.47229538]
[1770082086270,7.60535743,104.12,104.09,0.47229538]
[1770082086477,8.06586164,104.13,104.09,0.47229538]
[1770082086683,7.60535743,104.13,104.09,0.47229538]
[1770082087464,8.06586164,104.13,104.09,0.47229538]
[1770082087682,7.60535743,104.12,104.09,0.47229538]
[1770082088383,7.6079095,104.12,104.09,10.07888601]
[1770082088583,7.6079095,104.12,104.1,0.47229538]
[1770082089598,8.06841371,104.16,104.12,0.47229538]
[1770082090483,7.6079095,104.15,104.12,10.07582779]
[1770082090891,8.06841371,104.15,104.12,0.47229538]
[1770082091071,8.06841371,104.15,104.12,10.07648074]
[1770082091271,7.6079095,104.15,104.12,10.07648074]
[1770082091668,7.6079095,104.15,104.13,0.47229538]
[1770082091983,7.6079095,104.15,104.11,9.60511314]
[1770082092187,10.06127539,104.16,104.1,9.60555822]
[1770082092188,7.6079095,104.12,104.1,9.60555822]
[1770082092481,7.6079095,104.12,104.09,24.01641628]
[1770082092884,0.46050421,104.13,104.09,24.01641628]
[1770082093186,7.6079095,104.12,104.09,24.01641628]
[1770082093486,7.6079095,104.1,104.08,9.60799385]
[1770082093682,7.6079095,104.09,104.06,0.2]
[1770082093983,4.27527085,104.12,104.07,10.06942128]
[1770082094175,7.6079095,104.1,104.07,10.06942128]
[1770082096199,8.06841371,104.1,104.07,10.06942128]
[1770082096991,7.6079095,104.08,104.06,0.2]
[1770082097296,7.6079095,104.08,104.06,9.80977195]
[1770082097893,7.6079095,104.08,104.04,0.46050421]
[1770082097894,7.6079095,104.07,104.04,0.46050421]
[1770082098185,7.6079095,104.06,104.04,0.46050421]
[1770082098771,7.6079095,104.06,104.02,9.61353585]
[1770082098772,7.6079095,104.05,104.02,9.61353585]
[1770082099076,7.6079095,104.05,104.02,10.07404006]
[1770082099281,8.06841371,104.06,104.02,9.61353585]
[1770082099484,8.06841371,104.06,104.03,0.46050421]
[1770082099868,7.6079095,104.05,104.02,10.07404006]
[1770082100068,7.6079095,104.04,104.02,10.07404006]
[1770082100288,7.6079095,104.03,104.01,0.2]
[1770082100887,7.6079095,104.05,104.02,0.46050421]
[1770082101079,8.08591051,104.06,104.02,0.46050421]
[1770082101472,7.6079095,104.06,104.03,0.46050421]
[1770082102271,8.08591051,104.06,104.03,0.46050421]
[1770082102773,7.6079095,104.05,104.02,0.46050421]
[1770082103393,7.6079095,104.05,104.02,10.07390642]
[1770082104673,7.6079095,104.06,104.03,0.46050421]
[1770082105082,7.6079095,104.07,104.04,0.46050421]
[1770082105287,8.08591051,104.08,104.04,0.46050421]
[1770082105793,6.18534697,104.1,104.04,0.46050421]
[1770082105794,8.08591051,104.09,104.05,0.46050421]
[1770082105979,7.6079095,104.08,104.05,0.46050421]
[1770082106174,7.6079095,104.07,104.05,0.46050421]
[1770082106376,7.6079095,104.07,104.04,0.46050421]
[1770082107203,7.6079095,104.06,104.03,0.46050421]
[1770082107382,7.6079095,104.06,104.03,10.07263232]
[1770082108195,7.6079095,104.05,104.02,10.07353102]
[1770082108695,8.08591051,104.04,104.01,9.81394204]
[1770082108995,7.6079095,104.03,104.01,9.81394204]
[1770082110694,8.08591051,104.04,104.01,9.81394204]
[1770082112386,7.6079095,104.03,104.01,9.81394204]
[1770082112582,7.6079095,104.03,104.01,0.2]
[1770082112784,8.08591051,104.02,104.01,0.2]
[1770082114486,7.6079095,104.02,104.01,9.81446014]
[1770082114801,8.08591051,104.03,104.01,9.81446014]
[1770082115200,8.08591051,104.03,104.01,0.2]
[1770082115585,7.6079095,104.01,103.99,9.61575033]
[1770082116502,8.08591051,104.02,103.99,10.07625454]
[1770082117002,7.6079095,104.01,103.99,10.07625454]
[1770082117510,8.08591051,104.02,103.99,10.07625454]
[1770082119209,7.6079095,104.02,103.99,34.11702769]
[1770082119513,8.08591051,104.06,104.02,0.46050421]
[1770082119816,0.47800101,104.06,104.02,8.06841371]
[1770082120520,0.47800101,104.06,104.03,0.46050421]
[1770082121304,8.08591051,104.06,104.03,10.07273439]
[1770082121997,8.08591051,104.05,104.02,9.6131657]
[1770082124892,8.08591051,104.06,104.03,0.46050421]
[1770082125094,0.47800101,104.06,104.03,8.06841371]
[1770082126197,8.08591051,104.04,104.0,0.46050421]
[1770082126403,8.08591051,104.04,103.98,0.34216157]
[1770082126404,8.08591051,104.02,103.99,10.07625873]
[1770082126616,7.6079095,104.01,103.99,10.07625873]
[1770082127319,8.08591051,104.01,103.98,0.2]
[1770082127524,8.08591051,104.01,103.97,0.46050421]
[1770082127525,0.47800101,103.98,103.96,0.2]
[1770082127720,7.6079095,103.97,103.96,0.2]
[1770082128021,8.08591051,103.97,103.94,10.08413741]
[1770082128215,7.6079095,103.96,103.94,10.08413741]
[1770082128420,8.08591051,103.97,103.94,10.08413741]
[1770082128716,33.65079967,104.01,103.95,0.4634816]
[1770082128717,8.08591051,103.99,103.95,0.4634816]
[1770082128898,8.08591051,103.99,103.95,8.0713911]
[1770082129100,7.6079095,103.98,103.95,0.4634816]
[1770082129297,7.6079095,103.98,103.95,10.08319532]
[1770082129605,7.6079095,103.97,103.95,10.08319532]
[1770082131425,8.08591051,103.98,103.95,10.08319532]
[1770082132405,7.6079095,103.98,103.95,10.08319532]
[1770082133724,0.45753863,104.01,103.96,10.10043201]
[1770082133922,0.45753863,104.01,103.96,17.70834151]
[1770082133923,8.06544813,104.01,103.96,17.70834151]
[1770082134231,8.06544813,104.01,103.97,7.6079095]
[1770082134405,8.06544813,104.01,103.96,41.75605216]
[1770082135409,7.6079095,104.0,103.96,41.75605216]
[1770082137109,8.06544813,104.01,103.97,7.76841371]
[1770082137320,0.45753863,104.01,103.97,7.76841371]
[1770082137505,8.06544813,104.01,103.97,7.76841371]
[1770082138809,8.06544813,104.03,103.98,7.76841371]
[1770082139113,8.06544813,104.03,103.99,9.61630926]
[1770082139905,0.45753863,104.02,103.99,9.61630926]
[1770082140106,8.06544813,104.02,103.99,9.61630926]
[1770082140622,0.45753863,104.01,103.98,9.61678456]
[1770082140937,8.06544813,104.01,103.98,9.61678456]
[1770082143035,8.06544813,104.02,103.98,41.42828347]
[1770082143631,0.45753863,104.02,103.98,41.42828347]
[1770082144020,8.06544813,104.02,103.98,41.42828347]
[1770082145838,0.45753863,104.02,103.98,41.42828347]
[1770082148440,8.07991496,104.02,103.98,41.4427503]
[1770082149632,0.45753863,104.01,103.98,33.82037397]
[1770082149818,8.07991496,104.02,103.98,33.82037397]
[1770082152534,8.07991496,104.02,103.98,41.4427503]
[1770082153240,6.18534697,104.1,104.01,0.48169896]
[1770082153535,7.62237633,104.06,104.02,7.62237633]
[1770082153733,33.62474781,104.09,104.02,8.10407529]
[1770082153924,7.62237633,104.07,104.02,8.10407529]
[1770082154317,7.62237633,104.09,104.05,0.48169896]
[1770082154519,6.18534697,104.1,104.08,0.48169896]
[1770082154834,6.21336808,104.11,104.09,0.48169896]
[1770082155033,6.21336808,104.11,104.08,7.62237633]
[1770082156320,0.45753863,104.12,104.08,7.62237633]
[1770082156515,0.45753863,104.12,104.1,9.60614793]
[1770082156726,0.45753863,104.12,104.09,31.63963942]
[1770082157432,0.45753863,104.12,104.09,25.29741514]
[1770082157713,0.45753863,104.12,104.09,7.62237633]
[1770082158546,0.45753863,104.11,104.09,9.60665911]
[1770082158855,0.45753863,104.11,104.08,9.60799385]
[1770082159393,0.45753863,104.11,104.08,33.62797847]
[1770082160029,7.62237633,104.11,104.08,33.62797847]
[1770082160217,0.45309751,104.1,104.08,33.62797847]
[1770082160419,7.62237633,104.12,104.08,33.62797847]
[1770082160618,7.72237633,104.13,104.08,41.72898855]
[1770082161018,7.62237633,104.12,104.08,41.72898855]
[1770082161920,7.62237633,104.12,104.08,32.1209947]
[1770082162537,8.07547384,104.12,104.08,32.1209947]
[1770082164054,0.45309751,104.12,104.08,32.1209947]
[1770082164252,0.45309751,104.12,104.08,41.72898855]
[1770082164756,8.07547384,104.12,104.08,41.72898855]
[1770082164957,0.45309751,104.11,104.08,41.72898855]
[1770082165158,0.45309751,104.11,104.08,34.10661222]
[1770082165345,0.45309751,104.11,104.08,41.72898855]
[1770082168369,8.17547384,104.13,104.09,0.47863375]
[1770082168662,0.45309751,104.12,104.09,0.47863375]
[1770082169374,0.45309751,104.11,104.08,34.10661222]
[1770082170064,0.45309751,104.11,104.08,41.72898855]
[1770082171142,0.45309751,104.1,104.08,9.60799385]
[1770082171440,0.45309751,104.1,104.07,9.60891707]
[1770082172354,0.45309751,104.08,104.06,9.60935335]
[1770082172760,0.45309751,104.07,104.05,9.61029245]
[1770082173245,0.45309751,104.06,104.04,9.6111506]
[1770082174261,7.62237633,104.07,104.04,34.11900388]
[1770082174562,0.45309751,104.07,104.04,34.11900388]
[1770082174869,0.45309751,104.08,104.05,0.47863375]
[1770082175160,7.62237633,104.09,104.05,8.10101008]
[1770082175161,8.07547384,104.09,104.05,8.10101008]
[1770082175864,8.07547384,104.09,104.06,9.60984047]
[1770082176761,8.07547384,104.09,104.06,34.11307541]
[1770082176762,0.45309751,104.09,104.06,34.11307541]
[1770082176956,0.45309751,104.09,104.06,41.73545174]
[1770082177952,0.45309751,104.09,104.06,34.11307541]
[1770082181966,0.45309751,104.06,104.0,0.47863375]
[1770082182272,8.07547384,104.03,104.01,9.61361958]
[1770082182652,0.45309751,104.03,104.01,33.64976995]
[1770082183961,8.07547384,104.04,104.01,33.64976995]
[1770082186266,8.07547384,104.03,104.01,9.61361958]
[1770082188382,8.07547384,104.05,104.01,34.1284037]
[1770082188560,0.45309751,104.04,104.01,34.1284037]
[1770082191069,8.07547384,104.04,104.01,34.1284037]
[1770082191268,8.07547384,104.04,104.01,10.09225333]
[1770082192063,8.10836977,104.03,104.01,9.61361958]
[1770082192263,8.10836977,104.03,104.0,0.46255399]
[1770082192471,8.10836977,104.03,104.01,9.61442463]
[1770082192671,7.62237633,104.03,104.01,9.61442463]
[1770082192875,8.10836977,104.04,104.01,9.61442463]
[1770082197165,8.10836977,104.03,104.0,34.1158042]
[1770082197489,0.48599344,104.03,104.0,34.1158042]
[1770082197871,8.10836977,104.04,104.0,34.1158042]
[1770082200389,8.10836977,104.01,103.99,31.39449831]
[1770082200577,8.10836977,104.0,103.99,31.39449831]
[1770082200889,0.48599344,103.99,103.97,9.81754448]
[1770082201183,0.48599344,103.98,103.97,9.81815908]
[1770082201363,0.48599344,103.98,103.97,0.2]
[1770082201566,8.10836977,103.98,103.97,0.2]
[1770082201784,8.10836977,103.98,103.95,9.61952407]
[1770082202174,0.48599344,103.98,103.94,0.46255399]
[1770082202374,8.10836977,103.98,103.95,9.61955848]
[1770082203289,8.10836977,103.97,103.94,10.08297613]
[1770082203491,8.10836977,103.96,103.94,9.62042214]
[1770082203692,8.10836977,103.95,103.92,10.28485468]
[1770082204279,8.10836977,103.95,103.93,9.62185591]
[1770082205690,8.10836977,103.94,103.92,9.82230273]
[1770082205871,8.10836977,103.94,103.92,0.2]
[1770082206287,0.48599344,103.94,103.92,9.82264025]
[1770082206769,0.48599344,103.93,103.92,0.2]
[1770082206974,0.48599344,103.94,103.92,0.2]
[1770082207285,0.48599344,103.93,103.92,0.2]
[1770082207995,8.10836977,103.93,103.92,0.2]
[1770082208296,0.48599344,103.93,103.92,0.2]
[1770082209295,7.63520674,103.96,103.92,10.28518416]
[1770082209596,7.63520674,103.95,103.92,10.28518416]
[1770082209971,26.72,104.0,103.92,10.28518416]
[1770082209972,7.63520674,103.97,103.93,0.46255399]
[1770082210285,7.63520674,103.98,103.94,0.46255399]
[1770082210597,7.63520674,103.97,103.94,0.46255399]
[1770082211276,7.63520674,103.97,103.94,10.0830416]
[1770082211899,8.12120018,103.98,103.94,10.0830416]
[1770082212087,8.12120018,103.97,103.94,10.0830416]
[1770082212695,7.63520674,103.96,103.93,10.08424235]
[1770082212891,8.12120018,103.96,103.93,10.08424235]
[1770082213292,8.12120018,103.95,103.92,10.28481777]
[1770082214695,7.63520674,103.95,103.92,10.28481777]
[1770082214898,8.12120018,103.97,103.93,0.46255399]
[1770082215200,8.12120018,103.98,103.94,0.46255399]
[1770082215402,8.12120018,103.98,103.95,0.46255399]
[1770082215786,8.12120018,103.98,103.94,7.63520674]
[1770082215787,7.63520674,103.97,103.94,0.46255399]
[1770082215988,8.12120018,103.97,103.94,0.46255399]
[1770082217290,34.62418565,104.01,103.92,34.34147088]
[1770082217291,8.12120018,103.96,103.92,34.34147088]
[1770082217493,8.12120018,103.96,103.93,9.62184418]
[1770082217790,7.63520674,103.95,103.93,10.08439817]
[1770082217991,0.48599344,103.96,103.94,10.08342756]
[1770082217992,7.63520674,103.96,103.94,10.08342756]
[1770082218182,8.12120018,103.97,103.94,10.08342756]
[1770082218589,7.63520674,103.96,103.94,0.46255399]
[1770082220293,7.63520674,103.96,103.94,10.08318301]
[1770082221799,0.45640815,103.95,103.93,9.62141402]
[1770082222005,8.09161489,103.96,103.94,9.62093515]
[1770082222390,8.09161489,103.97,103.94,0.46917264]
[1770082222601,7.63520674,103.97,103.94,0.46917264]
[1770082223115,8.09161489,103.98,103.94,0.46917264]
[1770082224104,8.09161489,103.97,103.94,0.46917264]
[1770082224289,8.09161489,103.96,103.93,10.0910335]
[1770082224488,3.30573968,103.96,103.93,10.0910335]
[1770082226110,2.84933153,103.96,103.93,10.0910335]
[1770082226995,3.30573968,103.96,103.93,10.0910335]
[1770082230516,2.84933153,103.96,103.94,0.46917264]
[1770082230812,0.45640815,103.96,103.93,34.14568566]
[1770082231002,3.30573968,103.96,103.93,10.0910335]
[1770082231809,0.45640815,103.93,103.91,0.2]
[1770082232012,0.12456517,103.91,103.88,0.07543483]
[1770082232190,2.84933153,103.89,103.87,5.02897878]
[1770082232394,2.84933153,103.88,103.85,10.12880354]
[1770082232600,2.84933153,103.87,103.85,10.12880354]
[1770082233005,16.74782102,103.92,103.85,34.20198601]
[1770082233214,2.84933153,103.88,103.85,34.20198601]
[1770082233896,2.84933153,103.88,103.86,0.5]
[1770082234118,2.84933153,103.88,103.86,9.628076]
[1770082234499,7.64360257,103.88,103.86,9.628076]
[1770082235109,7.64360257,103.9,103.86,34.19894062]
[1770082235306,7.64360257,103.9,103.87,0.5]
[1770082236003,7.64360257,103.9,103.88,9.6264921]
[1770082236815,7.64360257,103.89,103.87,10.12695432]
[1770082239523,7.64360257,103.9,103.87,10.12695432]
[1770082242827,26.74,103.95,103.88,0.5]
[1770082243129,7.64360257,103.91,103.88,0.5]
[1770082243431,7.64360257,103.91,103.89,10.1255655]
[1770082244334,7.64360257,103.9,103.87,0.5]
[1770082244623,7.64360257,103.89,103.87,10.1271628]
[1770082245231,7.64360257,103.88,103.85,10.12848345]
[1770082245435,7.64360257,103.87,103.85,10.12848345]
[1770082246102,7.64360257,103.87,103.86,0.5]
[1770082247539,7.64360257,103.87,103.86,10.12834585]
[1770082247824,7.64360257,103.87,103.86,0.5]
[1770082248800,7.64360257,103.87,103.86,10.12834585]
[1770082250625,7.64360257,103.87,103.85,10.12882077]
[1770082251311,28.33213544,103.93,103.87,0.5]
[1770082251614,7.64360257,103.9,103.87,0.5]
[1770082253322,7.64360257,103.9,103.87,10.12720284]
[1770082254545,7.64360257,103.9,103.88,0.5]
[1770082254843,7.64360257,103.91,103.88,0.5]
[1770082255412,7.64360257,103.91,103.88,10.12613006]
[1770082256417,2.85211306,103.91,103.88,10.12613006]
[1770082256619,2.85211306,103.89,103.87,9.62719854]
[1770082256832,12.47508923,103.92,103.86,0.5]
[1770082256833,2.85211306,103.88,103.86,0.5]
[1770082257736,2.85211306,103.87,103.85,9.62885065]
[1770082257912,2.85211306,103.86,103.84,9.82976038]
[1770082258110,36.53205612,103.92,103.82,9.63164831]
[1770082258111,2.85211306,103.85,103.82,9.63164831]
[1770082258326,2.85211306,103.84,103.82,9.63164831]
[1770082258724,2.85211306,103.85,103.82,10.13164831]
[1770082259534,2.85211306,103.85,103.83,0.5]
[1770082259737,2.85211306,103.86,103.83,0.5]
[1770082259912,2.85211306,103.85,103.83,0.5]
[1770082260841,2.85211306,103.88,103.84,0.5]
[1770082261132,2.85211306,103.89,103.85,0.5]
[1770082261717,2.85211306,103.88,103.85,0.5]
[1770082261920,2.85211306,103.87,103.85,0.5]
[1770082262437,2.85211306,103.88,103.85,0.5]
[1770082262638,2.85211306,103.87,103.85,0.5]
[1770082262938,33.68342768,103.91,103.85,10.12902897]
[1770082262939,2.85211306,103.88,103.85,10.12902897]
[1770082263441,2.85211306,103.87,103.85,10.12902897]
[1770082263627,2.85211306,103.87,103.84,10.12973912]
[1770082264127,2.85211306,103.86,103.83,34.20841156]
[1770082264319,2.85211306,103.86,103.84,0.5]